{"text_format":"1","workbook":"xlsx","n_sheets":7,"sheets":["DATOS CARTA00","lec.2","ESCRITURA","PULSACIONES","lec.03","lec.04","lec.05"],"not_rendered":{"charts":0,"images":2,"macros":1,"external_links":0,"defined_names":0,"comments":0,"pivot_tables":0},"unopened":[],"bounds":{"document_bytes":16777216,"sheet_cells":100000,"rows_first":2000,"rows_last":500,"rows_between":2000,"halvings":0,"cell_chars":16384,"cell_head_chars":4096},"cells_cut":0,"cells_raw":0,"read":"whole","date_system":"1900"}

{"sheet":"DATOS CARTA00","index":0,"n_rows":58,"n_cols":3,"rows_kept":58,"cut":false,"hidden":true,"merged":[]}
[1,"leña fea lisa deidad gelida seda jefe fila sida fije siglas del desde les se",1]
[2,"lea esa ese he ellas ideas sea diseñe llega si le el es fe le el fe le el es si",1]
[3,"dieses fieles dieses fieles fieles hiedes fijese hiedes hiedes leña fea es",1]
[4,"esa ese ellas ideas si diseses fieles dieses fieles dia liase desele liase",1]
[5,"sida dias fije siglas diseñe llega gases silla sella lagaña alaska iglesias si",1]
[6,"alaska iglesias flageladas hallase seda si ese jefe ideas dias fije",1]
[7,"del desde les se lea esa he ellas fila sea diseñe llega gelida felices si",1]
[8,"agasajadas el kafe dile asi kasalla",1]
[9,"STOP",1]
[10]
[11]
[12]
[13]
[14]
[15]
[16]
[17]
[18]
[19]
[20]
[21]
[22]
[23]
[24]
[25]
[26]
[27]
[28]
[29]
[30]
[31]
[32]
[33]
[34]
[35]
[36]
[37]
[38]
[39]
[40]
[41]
[42]
[43]
[44]
[45]
[46]
[47]
[48]
[49]
[50]
[51]
[52]
[53]
[54]
[55]
[56]
[57]
[58]

{"sheet":"lec.2","index":1,"n_rows":15,"n_cols":3,"rows_kept":15,"cut":false,"hidden":true,"merged":[]}
[1,"de la fe asadle dije de la fe dije ella es fija hiedes isla hedilla dedal de",2]
[2,"dedal kasillas aida killa si dieses sillas la clase de seda hallada kalkada",2]
[3,"si es hil siglas leñas fea lisa del desde les se leña esa he ellas fila sea",2]
[4,"sea ella es fija hiedes isla hedilla de killa si dieses sillas la clase ñua",2]
[5,"de seda hallada deidad ñu regulares lugar usarse seguridad asegurar",2]
[6,"sugiere fuera guardar sufre usara lugar figura usarla igual sigue",2]
[7,"lugar duda fue use usada aliñar leer serie realidad darse darse era",2]
[8,"red leer usara lugar serie ir sufre realidad darse",2]
[9,"STOP",2]
[10]
[11]
[12]
[13]
[14]
[15]

{"sheet":"ESCRITURA","index":2,"n_rows":15,"n_cols":13,"rows_kept":15,"cut":false,"hidden":false,"merged":[[1,8,2,8],[0,10,4,10],[0,4,0,6],[3,0,3,8],[4,0,4,8],[0,9,4,9],[5,4,5,5],[13,0,13,9],[14,0,14,9],[12,0,12,9],[11,0,11,9],[10,0,10,10]]}
[null,null,null,null,"habilitar este contenido",null,null,null,null,null,null,1,{"$f":"NOW()","v":41715.703991319446}]
[{"$f":"A3-M2","v":348.29279548611521},null,null,null,null,"lección",{"$f":"L11","v":1},"nombre",null,null,null,null,41367.411195833331]
[{"$f":"NOW()","v":41715.703991319446},{"$f":"M1-M6","v":351.212858564817},null,null,"pulsaciones",{"$f":"M5","v":""},"minuto","PAPA",null,null,null,1,{"$f":"(HOUR(L5)*3600)+(MINUTE(L5)*60+SECOND(L5))","v":25298}]
[{"$f":"A11","v":"leña fea lisa deidad gelida seda jefe fila sida fije siglas del desde les se"},null,null,null,null,null,null,null,null,null,null,550,{"$f":"IF(M3=0,\"\",L4/M3*60)","v":1.3044509447387147}]
[null,null,null,null,null,null,null,null,null,null,null,{"$f":"A2","v":348.29279548611521},{"$f":"IF(A4=\"STOP\",M4,\"\")","v":""}]
[null,null,null,null,{"$f":"A2","v":348.29279548611521},null,null,null,null,null,null,{"$f":"TODAY()","v":"2014-03-17"},41364.491132754629]
[]
[]
[]
[]
[{"$f":"VLOOKUP(L1,'DATOS CARTA00'!A1:B50,2,FALSE)","v":"leña fea lisa deidad gelida seda jefe fila sida fije siglas del desde les se"},null,null,null,null,null,null,null,null,null,null,{"$f":"VLOOKUP(L1,'DATOS CARTA00'!A1:C23,3,FALSE)","v":1}]
[{"$f":"VLOOKUP(L1,lec.2!A1:B17,2,FALSE)","v":"de la fe asadle dije de la fe dije ella es fija hiedes isla hedilla dedal de"},null,null,null,null,null,null,null,null,null,null,{"$f":"VLOOKUP(L1,lec.2!A1:C15,3,FALSE)","v":2}]
[{"$f":"VLOOKUP(L1,lec.03!A1:B18,2,FALSE)","v":"fijarse guardar agregar era idear darles reglas heredar heredarla dedo"},null,null,null,null,null,null,null,null,null,null,{"$f":"VLOOKUP(L1,lec.03!A1:C24,3,FALSE)","v":3}]
[{"$f":"VLOOKUP(L1,lec.04!A1:B10,2,FALSE)","v":"ñoño ñoña españa que dedo porque pequeños quiero aquellos por pero"},null,null,null,null,null,null,null,null,null,null,{"$f":"VLOOKUP(L1,lec.04!A1:C17,3,FALSE)","v":4}]
[{"$f":"VLOOKUP(L1,lec.05!A1:B100,2,FALSE)","v":"esperado puede pasar por los dedos del asilo hola si eres ñoño eres ruidoso"},null,null,null,null,null,null,null,null,null,null,{"$f":"VLOOKUP(L1,lec.05!A1:C24,3,FALSE)","v":5}]

{"sheet":"PULSACIONES","index":3,"n_rows":33,"n_cols":8,"rows_kept":33,"cut":false,"hidden":false,"merged":[[0,4,0,5],[0,2,1,2],[0,3,1,3]]}
[{"$f":"VLOOKUP(G1,B3:E10,4,FALSE)","v":{"$error":"#N/A"}},null,"tiempo","lección","PULSACIONES MINUTO",null,{"$f":"MAX((B30:B33))","v":232.3943661971831},{"$f":"VLOOKUP(G1,B3:E13,4,FALSE)","v":{"$error":"#N/A"}}]
[{"$f":"TODAY()","v":"2014-03-17"},null,null,null,"nombre","volver",{"$f":"LARGE(B30:B33,2)","v":230.76923076923077},{"$f":"IF($G$1,A$32,)","v":"2012-03-13"}]
["2013-04-03",222.97297297297297,"00:02:29.770",5,"PAPA"]
["2013-03-31",224.48979591836735,"00:02:28.950",5,"PAPA"]
["2013-03-31",217.10526315789474,"00:02:33.980",4,"PAPA"]
["2013-03-31",214.28571428571431,"00:02:35.670",3,"PAPA"]
["2013-03-31",207.54716981132077,"00:02:41.150",2,"PAPA"]
["2013-03-31",210.19108280254778,"00:02:39.050",1,"PAPA"]
["2013-03-22",235.71428571428569,"00:02:21.040",2,"PAPA"]
["2013-03-22",237.41007194244602,"00:02:20.790",5,"PAPA"]
["2013-03-22",239.13043478260869,"00:02:19.740",4,"PAPA"]
["2013-03-22",229.16666666666669,"00:02:25.790",3,"PAPA"]
["2013-03-22",220,"00:02:32.280",1,"PAPA"]
["2013-03-19",235.71428571428569,"00:02:21.810",5,"PAPA"]
["2013-03-19",229.16666666666669,"00:02:26.270",4,"PAPA"]
["2013-03-19",203.7037037037037,"00:02:43.800",3,"PAPA"]
["2013-03-19",202.45398773006136,"00:02:45.560",2,"PAPA"]
["2013-03-19",210.19108280254778,"00:02:38.960",1,"PAPA"]
["2013-03-15",196.42857142857142,"00:02:50.090",5,"PAPA"]
["2013-03-15",206.25,"00:02:42.370",4,"PAPA"]
["2013-03-15",189.65517241379311,"00:02:56.160",3,"PAPA"]
["2013-03-15",192.98245614035088,"00:02:54.090",2,"PAPA"]
["2012-03-13",227.58620689655172,"00:02:27.050",1,"PAPA"]
["2012-03-13",226.02739726027397,"00:02:27.810",1,"PAPA"]
["2012-03-13",229.16666666666669,"00:02:26.210",5,"NUEVO"]
["2012-03-13",221.47651006711408,"00:02:31.330",4,"NUEVO"]
["2012-03-13",226.02739726027397,"00:02:27.860",3,"NUEVO"]
["2012-03-13",218.54304635761588,"00:02:33.250",2,"NUEVO"]
["2012-03-13",210.19108280254778,"00:02:39.670",1,"NUEVO"]
["2012-03-13",227.58620689655172,"00:02:26.590",5,"NUEVO"]
["2012-03-13",220,"00:02:32.660",4,"NUEVO"]
["2012-03-13",230.76923076923077,"00:02:25.550",3,"NUEVO"]
["2012-03-13",232.3943661971831,"00:02:24.690",2,"NUEVO"]

{"sheet":"lec.03","index":4,"n_rows":24,"n_cols":3,"rows_kept":24,"cut":false,"hidden":true,"merged":[]}
[1,"fijarse guardar agregar era idear darles reglas heredar heredarla dedo",3]
[2,"agregarle figura agregarla usarla llegar regulares lugar usarse dedo",3]
[3,"asegurar sugiere fuera guardar sufre usara lugar figura usarla igual de",3]
[4,"su lugar duda fue use usada realidad darse fijarse guardar agregar si",3]
[5,"era idear darles reglas heredar uiea frases kalidad dril hullas risas el",3]
[6,"fregar drakula dile si rie del deskargar es rarilla la hija del jefe frias",3]
[7,"heredarla agregarle figura agregarle usarla usarse dejar series llegar",3]
[8,"llegar dile se rie del es rarilla la hija de rarilla las",3]
[9,"STOP",3]
[10]
[11]
[12]
[13]
[14]
[15]
[16]
[17]
[18]
[19]
[20]
[21]
[22]
[23]
[24]

{"sheet":"lec.04","index":5,"n_rows":26,"n_cols":3,"rows_kept":26,"cut":false,"hidden":true,"merged":[]}
[1,"ñoño ñoña españa que dedo porque pequeños quiero aquellos por pero",4]
[2,"pero paso propios apropiados esperado operador pasarlo podido sol opera",4]
[3,"perforadas pode preferido poseer puro pero paso propios apropiado dedo",4]
[4,"esperado operador pasarlo podido propiedad perforadas pode dedo puro",4]
[5,"pode propiedades pequeño poderles porque pop preferido poseer poseer",4]
[6,"puro porque pasa por españa que dedo porque pequeños quiero del pode",4]
[7,"aquellos por pero paso propios apropiado esperado operador operados",4]
[8,"pasarlo la españa que deseo es hija de dios para el porque prisa del dia",4]
[9,"STOP",4]
[10]
[11]
[12]
[13]
[14]
[15]
[16]
[17]
[18]
[19]
[20]
[21]
[22]
[23]
[24]
[25]
[26]

{"sheet":"lec.05","index":6,"n_rows":45,"n_cols":3,"rows_kept":45,"cut":false,"hidden":true,"merged":[]}
[1,"esperado puede pasar por los dedos del asilo hola si eres ñoño eres ruidoso",5]
[2,"pero rojillo apropiado para querer ha sido operado del ojo porque es parado",5]
[3,"parado del poder que quiere prefiere dar que apropiarse de la propiedad de",5]
[4,"los galos el ruidoso pop es feo dijo el jefe de las ideas llegar lejos complace",5]
[5,"complace muchos marcados como marcada comercial compiladores comunes",5]
[6,"creamos modificar cargamos mucha modificarlo campo comandos preocupa",5]
[7,"preocupamos mencionar modificando hacemos modificaciones cumpla campo",5]
[8,"comodidad marcarlo complejo incomodidad de",5]
[9,"STOP",5]
[10]
[11]
[12]
[13]
[14]
[15]
[16]
[17]
[18]
[19]
[20]
[21]
[22]
[23]
[24]
[25]
[26]
[27]
[28]
[29]
[30]
[31]
[32]
[33]
[34]
[35]
[36]
[37]
[38]
[39]
[40]
[41]
[42]
[43]
[44]
[45]